[Event "Austrian Bundesliga 2023-24"]
[Site "Austria"]
[Date "2024.03.22"]
[Round "9.8"]
[White "Prusikin, Michael"]
[Black "Zilka, Stepan"]
[Result "1/2-1/2"]
[ECO "D37"]
[WhiteElo "2508"]
[BlackElo "2589"]
[Annotator "TA"]
[PlyCount "69"]
[EventDate "2023.10.21"]
[EventType "team-tourn"]
[EventCountry "AUT"]
[SourceTitle "playchess.com"]
[Source "ChessBase"]
[SourceQuality "1"]
[TimeControl "40/5400+30:1800+30"]

{[%evp 9,69,18,15,0,0,-12,31,-16,-15,-13,46,0,30,0,22,7,50,53,50,41,99,90,127,114,112,58,65,62,68,56,79,0,60,43,45,46,39,34,41,41,43,38,39,9,62,25,28,18,22,0,0,0,0,0,0,0,0,0,0,0,0,0]} 1. d4 {[%emt 0:00:03]} Nf6 {[%emt 0:00:07]} 2. c4 {[%emt 0:00:05]} e6 {[%emt 0:00:05]} 3. Nf3 {[%emt 0:00:05]} d5 {[%emt 0:01:33]} 4. Nc3 {[%emt 0:00:26]} dxc4 {[%emt 0:00:13]} 5. e4 {[%emt 0:00:06]} Bb4 {[%emt 0:00:09]} 6. Bxc4 {[%emt 0:00:10]} Nxe4 {[%emt 0:00:20]} 7. O-O {[%emt 0:00:06]} Nf6 {[%emt 0:01:19]} 8. Qe2 {[%emt 0:00:30]} (8. Qa4+ $14 Nc6 9. Ne5) 8... O-O $11 {[%emt 0:01:32]} 9. Bg5 {[%emt 0:00:06]} Re8 {[%emt 0:06:46]} ({Vorzuziehen ist} 9... Nbd7 $11) 10. Rad1 $14 {[%emt 0:08:42][%mdl 1024] Weiss hat Kompensation.} Be7 {[%emt 0:05:11]} 11. Rfe1 {[%emt 0:04:35] Und jetzt d5 wäre schön.} (11. d5 $5 e5 12. d6 (12. Nxe5 Bd6 $16) (12. Qxe5 Nbd7 $14) 12... Bxd6 13. Ne4 $16) 11... Nbd7 {[%emt 0:05:52]} 12. Bb3 {[%emt 0:11:26]} Nf8 {[%emt 0:08:05]} 13. d5 {[%emt 0:03:20]} e5 {[%emt 0:00:53]} 14. Qxe5 {[%emt 0:06:46] Bxf6 wäre nun fies.} (14. Nxe5 Bd6 15. f4 Ng6 (15... Bg4 16. Qxg4 Nxg4 17. Bxd8 $16)) 14... Ng6 {[%emt 0:07:45]} (14... Bg4 $14) 15. Qd4 {[%emt 0:02:43]} h6 {[%emt 0:02:28] [#]} 16. d6 $1 {[%emt 0:03:46][%mdl 512] Weiß steht deutlich aktiver.} cxd6 {[%emt 0:00:09] [#]} 17. Rxe7 {[%emt 0:04:19]} Rxe7 {[%emt 0:00:11]} (17... Qxe7 $2 {ist das falsche Schlagen.} 18. Nd5 Qf8 19. Bxf6 $18) 18. Bxf6 {[%emt 0:00:09]} gxf6 {[%emt 0:00:05]} 19. Nd5 {[%emt 0:06:48]} (19. Qxf6 $2 {geht unter.} Re1+ 20. Rxe1 Qxf6 $19) 19... Re5 {[%emt 0:01:23]} 20. Nf4 {[%emt 0:11:45] Ein dynamisches Springerpaar.} (20. Nxe5 $16 fxe5 21. Qd2) 20... Bf5 {[%emt 0:31:28]} 21. Nxg6 {[%emt 0:05:05]} (21. Nh5 {ist interessant.} Rc8 22. Qd2 Kh7 23. Nxe5 fxe5 24. h3) 21... Bxg6 {[%emt 0:00:40]} 22. Nxe5 {[%emt 0:01:06]} fxe5 {[%emt 0:00:09]} 23. Qxd6 {[%emt 0:01:55]} Qxd6 {[%emt 0:00:43]} 24. Rxd6 {[%emt 0:00:01][%mdl 4096] Endspiel. KRB-KRB} Kg7 {[%emt 0:01:27]} 25. Rd7 {[%emt 0:01:06]} b6 {[%emt 0:00:10]} 26. g4 {[%emt 0:05:55]} a6 {[%emt 0:04:44]} ({Besser ist} 26... a5 $11) 27. h4 {[%emt 0:01:30] Droht stark h5.} h5 $1 {[%emt 0:00:01]} 28. g5 {[%emt 0:02:44]} Rc8 {[%emt 0:04:05] Die Stellung ist ausgeglichen.} 29. Rd6 {[%emt 0:05:47]} Rc1+ {[%emt 0:05:29]} 30. Kg2 {[%emt 0:00:55]} Rb1 {[%emt 0:00:16]} 31. Rxb6 {[%emt 0:07:36]} Be4+ {[%emt 0:00:19]} 32. f3 {[%emt 0:00:34]} Rxb2+ {[%emt 0:00:05]} 33. Kg3 {[%emt 0:00:33]} Bd5 {[%emt 0:01:05]} 34. Rxa6 {[%emt 0:01:06]} Bxb3 {[%emt 0:00:08]} 35. axb3 {[%emt 0:01:06] Gewichteter Fehlerwert: Weiß=0.16 (sehr präzise) /Schwarz=0.19 (sehr präzise) .  Fehler:       	Weiß=3     	Schwarz=4     Ungenau:       	Weiß=3     	Schwarz=4     OK:         	Weiß=8     	Schwarz=8     Bester:       	---       	Schwarz=5     Stark:        	---       	Schwarz=1} 1/2-1/2

[Event "Austrian Bundesliga 2023-24"]
[Site "Austria"]
[Date "2024.03.22"]
[Round "9.9"]
[White "Hracek, Zbynek"]
[Black "Berchtenbreiter, Maximilian"]
[Result "1/2-1/2"]
[ECO "B12"]
[WhiteElo "2542"]
[BlackElo "2486"]
[Annotator "TA"]
[PlyCount "113"]
[EventDate "2023.10.21"]
[EventType "team-tourn"]
[EventCountry "AUT"]
[SourceTitle "playchess.com"]
[Source "ChessBase"]
[SourceQuality "1"]
[TimeControl "40/5400+30:1800+30"]

{[%evp 14,113,0,4,10,2,17,27,8,-8,42,42,50,43,34,41,39,32,60,0,0,0,33,16,6,0,0,0,0,0,0,0,94,66,98,35,102,41,93,88,113,132,126,128,128,126,152,0,0,0,0,0,0,0,0,0,0,0,0,0,0,0,0,0,0,0,0,0,0,0,0,0,0,0,0,0,0,0,0,0,0,0,0,0,0,0,0,0,0,0,0,0,0,0,0,0,0,0,0,0,0,0]} 1. e4 {[%emt 0:00:04]} c6 {[%emt 0:00:11]} 2. d4 {[%emt 0:00:05]} d5 {[%emt 0:00:30]} 3. e5 {[%emt 0:00:07]} Bf5 {[%emt 0:00:04]} 4. Bd3 {[%emt 0:00:09]} Bxd3 {[%emt 0:00:31]} 5. Qxd3 {[%emt 0:00:03]} e6 {[%emt 0:00:33]} 6. Ne2 {[%emt 0:00:04]} c5 {[%emt 0:14:22]} 7. c3 {[%emt 0:00:18]} Nc6 {[%emt 0:00:10]} 8. O-O {[%emt 0:00:38]} Nge7 {[%emt 0:01:38]} 9. Nd2 {[%emt 0:09:44]} a6 {[%emt 0:05:36]} 10. Nf3 {[%emt 0:03:18]} Nf5 {[%emt 0:02:09] White has an edge.} 11. Kh1 {[%emt 0:10:04]} Be7 {[%emt 0:15:26]} (11... Qb6 $11) 12. g4 $1 $14 {[%emt 0:02:05]} Nh4 {[%emt 0:11:33]} 13. Nxh4 {[%emt 0:00:06]} Bxh4 {[%emt 0:00:05]} 14. f4 {[%emt 0:00:33]} Be7 {[%emt 0:07:26]} 15. f5 {[%emt 0:15:25]} Qb6 {[%emt 0:00:03]} 16. fxe6 {[%emt 0:08:41]} (16. Be3 $14) 16... fxe6 $11 {[%emt 0:00:07]} 17. Be3 {[%emt 0:02:05]} Qb5 {[%emt 0:03:23]} 18. Qc2 {[%emt 0:06:59]} cxd4 {[%emt 0:00:37]} 19. Nxd4 {[%emt 0:04:32]} Nxd4 {[%emt 0:00:16]} 20. Bxd4 {[%emt 0:01:26]} Rc8 {[%emt 0:07:39]} 21. Rf3 {[%emt 0:09:16]} g6 {[%emt 0:10:17]} 22. Raf1 {[%emt 0:08:24]} Rf8 {[%emt 0:02:37]} (22... Kd7 $1 $11) 23. Rxf8+ $16 {[%emt 0:01:03]} Bxf8 {[%emt 0:00:04]} 24. Kg2 {[%emt 0:00:28]} (24. Qf2 $16 Kd7 25. Qf7+ Be7 26. Rf6) 24... Be7 {[%emt 0:00:14]} (24... Qc4 $14 25. Rf4 (25. Qf2 Be7 $11) 25... Bh6) 25. b3 {[%emt 0:02:22]} (25. Rf3 $1 $16) 25... a5 {[%emt 0:06:26]} ({Black should play} 25... Qb4 $14 26. Qd2 (26. Qf2 Qa3 $14) 26... Qa3) 26. Rf3 {[%emt 0:04:38]} Kd7 {[%emt 0:06:39]} 27. a4 {[%emt 0:00:43]} Qa6 {[%emt 0:00:04]} 28. Qf2 $1 {[%emt 0:01:29]} h5 {[%emt 0:02:34] [#]} 29. Rf7 $1 {[%emt 0:07:03]} hxg4 {[%emt 0:00:19] [#]} 30. Bc5 $2 {[%emt 0:01:38] White is more active.} (30. Be3 $1 $16) 30... Rxc5 $11 {[%emt 0:00:11] The position is equal.} 31. Qxc5 {[%emt 0:00:05][%mdl 4096] Endgame. KQR-KQB} Qe2+ {[%emt 0:00:04]} 32. Kg1 {[%emt 0:01:18] The board is on fire.} Qd1+ {[%emt 0:01:17]} 33. Kf2 {[%emt 0:00:04]} Qf3+ {[%emt 0:00:20]} 34. Rxf3 {[%emt 0:00:04] White threatens Rf7 and mate.} Bxc5+ {[%emt 0:00:04] KR-KB} 35. Re3 $1 {[%emt 0:00:04]} Kc6 {[%emt 0:01:15][%cal Ob7b5] Hoping for ...b5!} 36. b4 {[%emt 0:02:20]} Bxe3+ {[%emt 0:01:03]} 37. Kxe3 {[%emt 0:00:01] KP-KP} b5 {[%emt 0:00:38]} 38. axb5+ {[%emt 0:00:08]} Kxb5 {[%emt 0:00:03]} 39. bxa5 {[%emt 0:00:05]} Kxa5 {[%emt 0:00:09]} 40. Kf4 {[%emt 0:00:00][%cal Of4g5] Threatens to win with Kg5!} Kb5 {[%emt 0:00:00]} (40... Ka4 $5 41. Kg5 $8 Kb3 $11) 41. Kg5 $1 {[%emt 0:00:10][%cal Og5f6] Threatening mate with Kf6!} Kc4 {[%emt 0:04:03]} 42. Kf6 {[%emt 0:00:04]} Kxc3 {[%emt 0:00:13]} 43. Kxe6 {[%emt 0:00:03] K3P-KPP} d4 {[%emt 0:00:07]} 44. Kf6 {[%emt 0:00:01]} d3 {[%emt 0:00:14]} 45. e6 $1 {[%emt 0:00:03]} d2 {[%emt 0:00:03]} 46. e7 $1 {[%emt 0:00:04]} d1=Q {[%emt 0:00:07]} 47. e8=Q {[%emt 0:00:05] Wards off Qd7. KQ-KQ} Qd6+ {[%emt 0:01:26]} 48. Kg5 {[%emt 0:02:20]} Qxh2 {[%emt 0:01:04] ...Qh5+ is the strong threat.} 49. Qc6+ {[%emt 0:01:42]} Kd4 {[%emt 0:00:26]} 50. Qb6+ {[%emt 0:00:39]} Kd5 {[%emt 0:01:16]} 51. Qb5+ {[%emt 0:01:17]} Ke4 {[%emt 0:00:26]} 52. Qc4+ {[%emt 0:00:13]} Ke3 {[%emt 0:00:19]} 53. Qc3+ {[%emt 0:00:23]} Kf2 {[%emt 0:01:19] ( -> ...Qh5+)} 54. Qd2+ {[%emt 0:00:07]} Kg1 {[%emt 0:00:06]} 55. Qxh2+ {[%emt 0:00:04]} Kxh2 {[%emt 0:00:02]} 56. Kxg4 {[%emt 0:00:07]} g5 {[%emt 0:00:02]} 57. Kxg5 {Weighted Error Value: White=0.08 (flawless) /Black=0.10 (very precise) .  Mistake:       	White=4     	Black=4      Inaccurate:     	---       	Black=3      OK:         	White=18    	Black=8      Best:        	White=8     	Black=2      Strong:       	White=7     	---} 1/2-1/2

[Event "Austrian Bundesliga 2023-24"]
[Site "Austria"]
[Date "2024.03.22"]
[Round "9.10"]
[White "Hess, Max"]
[Black "Haba, Petr"]
[Result "1/2-1/2"]
[ECO "A06"]
[WhiteElo "2392"]
[BlackElo "2436"]
[Annotator "TA"]
[PlyCount "125"]
[EventDate "2023.10.21"]
[EventType "team-tourn"]
[EventCountry "AUT"]
[SourceTitle "playchess.com"]
[Source "ChessBase"]
[SourceQuality "1"]
[TimeControl "40/5400+30:1800+30"]

{[%evp 18,125,0,0,1,0,0,0,0,-11,-14,-11,0,0,0,-38,-33,-29,-37,-52,-27,-35,0,0,9,0,14,0,65,15,41,31,10,19,24,33,26,8,8,0,0,0,0,0,6,0,0,0,0,0,0,-35,-35,-70,-47,-54,-11,-10,0,0,0,0,0,0,0,0,0,0,0,0,0,0,0,0,0,0,0,0,0,0,0,0,0,0,0,0,0,0,0,0,0,0,0,0,0,0,0,0,0,0,0,0,0,0,0,0,0,0,0,0]} 1. Nf3 {[%emt 0:00:03]} d5 {[%emt 0:00:18]} 2. e3 {[%emt 0:00:08]} Nf6 {[%emt 0:00:14]} 3. c4 {[%emt 0:00:06]} c6 {[%emt 0:00:13]} 4. Nc3 {[%emt 0:00:12]} a6 {[%emt 0:00:16]} 5. Qc2 {[%emt 0:01:12]} Nbd7 {[%emt 0:03:20]} 6. cxd5 {[%emt 0:08:13]} cxd5 {[%emt 0:01:13]} 7. d4 {[%emt 0:00:11]} e6 {[%emt 0:02:17]} 8. Bd2 {[%emt 0:03:19]} Bd6 {[%emt 0:01:34]} 9. Bd3 {[%emt 0:01:57]} O-O {[%emt 0:06:51]} 10. O-O {[%emt 0:02:34]} b5 {[%emt 0:14:17]} 11. e4 {[%emt 0:08:43]} dxe4 {[%emt 0:02:56]} ({Don't play} 11... b4 12. Nxd5 exd5 13. e5 $14) 12. Nxe4 {[%emt 0:01:09]} Be7 {[%emt 0:00:04]} 13. Ne5 {[%emt 0:11:18]} Bb7 {[%emt 0:01:21]} 14. Nc6 {[%emt 0:29:26]} Qe8 {[%emt 0:01:22]} 15. Nxe7+ {[%emt 0:01:59]} Qxe7 {[%emt 0:00:01]} 16. Bg5 {[%emt 0:01:05]} Rac8 {[%emt 0:18:56]} 17. Qe2 {[%emt 0:00:28]} Bxe4 {[%emt 0:08:36]} 18. Bxe4 {[%emt 0:03:35]} Qd6 {[%emt 0:01:24]} 19. Bf3 {[%emt 0:04:19]} Rc4 {[%emt 0:02:47]} 20. b3 {[%emt 0:02:32]} Rc3 {[%emt 0:05:17]} 21. Bd2 {[%emt 0:03:28] This pair of bishops is nice.} Rc7 {[%emt 0:02:06]} 22. a4 {[%emt 0:02:59]} b4 {[%emt 0:07:26]} ({Black should try} 22... Qxd4 $11 23. Rfd1 Qe5) 23. a5 {[%emt 0:01:31]} (23. Rfd1 $14) 23... Rfc8 {[%emt 0:04:30]} 24. Rfd1 {[%emt 0:03:04]} Nd5 {[%emt 0:02:36]} 25. Bxd5 {[%emt 0:01:26]} Qxd5 {[%emt 0:00:06]} 26. Qxa6 {[%emt 0:01:27]} Ra8 $1 {[%emt 0:00:19]} ({Much worse is} 26... Qxb3 $6 27. Rdb1 Qd5 28. Rxb4 $16 (28. Bxb4 Qxd4 29. Qf1 Rb8 $16)) 27. Qf1 {[%emt 0:01:13]} Rxa5 {[%emt 0:03:15]} 28. Rxa5 {[%emt 0:01:08]} Qxa5 {[%emt 0:00:02]} 29. Ra1 {[%emt 0:00:05]} Qd5 {[%emt 0:00:09][%csl LRb3,LRd4]} 30. Bxb4 {[%emt 0:00:20]} h6 {[%emt 0:05:51]} 31. Qd1 {[%emt 0:02:22]} Rb7 {[%emt 0:02:02]} 32. Ra5 {[%emt 0:01:10]} Qe4 {[%emt 0:02:18]} 33. Bc3 {[%emt 0:01:04]} Nf6 {[%emt 0:00:36][%cal Bd7f6,Bf6d5,Bd5f4][%mdl 32]} 34. h3 {[%emt 0:00:27]} Nd5 {[%emt 0:00:14][%mdl 1024] Black has compensation.} 35. Rc5 {[%emt 0:01:25]} Nf4 {[%emt 0:01:16][%csl Gf4][%cal Re4g2] [#]} 36. f3 {[%emt 0:00:23]} Qe3+ {[%emt 0:01:08]} 37. Kh2 {[%emt 0:00:09] The position is equal.} Nd5 {[%emt 0:00:10]} 38. Rc8+ {[%emt 0:00:37]} Kh7 {[%emt 0:00:01]} 39. Qc2+ {[%emt 0:00:11]} f5 {[%emt 0:00:28]} 40. Rc6 {[%emt 0:00:00]} Nxc3 {[%emt 0:00:00]} 41. Qxc3 {[%emt 0:07:54]} Rxb3 {[%emt 0:03:38]} 42. Qxe3 {[%emt 0:00:43]} Rxe3 $11 {[%emt 0:00:02][%mdl 4096] Endgame. KR-KR} 43. Kg3 {[%emt 0:04:07]} g5 {[%emt 0:04:45]} 44. h4 {[%emt 0:05:25]} Kg6 {[%emt 0:13:45]} 45. d5 {[%emt 0:02:07]} Kf6 {[%emt 0:00:37]} 46. h5 {[%emt 0:06:39]} Re5 {[%emt 0:00:12]} 47. d6 {[%emt 0:01:14]} f4+ {[%emt 0:02:05]} 48. Kh3 {[%emt 0:01:59]} Re1 {[%emt 0:01:07] [#] ( -> ...Rh1+)} 49. g3 {[%emt 0:01:23]} fxg3 {[%emt 0:00:15]} 50. Rc8 {[%emt 0:01:30][%cal Od6d7] d7! is the strong threat.} Rd1 {[%emt 0:00:25]} 51. Rd8 {[%emt 0:01:32]} Ke5 {[%emt 0:04:29]} 52. d7 {[%emt 0:00:57]} Kd6 {[%emt 0:00:40] Threatens to win with ...Rh1+.} 53. Rh8 {[%emt 0:00:38]} Kxd7 {[%emt 0:00:02] White must now prevent ...Rh1+.} 54. Rxh6 {[%emt 0:00:06]} Rg1 {[%emt 0:02:27]} 55. Rh8 {[%emt 0:00:35]} Ke7 {[%emt 0:00:38]} 56. h6 {[%emt 0:02:21] Strongly threatening h7.} Kf7 {[%emt 0:00:21]} 57. h7 {[%emt 0:00:35][%cal Oh8f8] Hoping for Rf8+!} Kg7 {[%emt 0:04:24]} 58. Rg8+ {[%emt 0:00:13]} Kxh7 {[%emt 0:00:02]} 59. Rxg5 {[%emt 0:00:08]} Rh1+ {[%emt 0:01:05]} 60. Kg2 {[%emt 0:01:17]} Rh6 {[%emt 0:00:03]} 61. Kxg3 {[%emt 0:00:30]} Rg6 {[%emt 0:00:05]} 62. Kf4 {[%emt 0:00:12]} Rxg5 {[%emt 0:00:10]} 63. Kxg5 {[%emt 0:00:08] Weighted Error Value: White=0.05 (flawless) /Black=0.06 (flawless) .  Mistake:       	White=1     	Black=1      Inaccurate:     	White=3     	Black=3      OK:         	White=23    	Black=26     Best:        	White=2     	Black=3      Strong:       	---       	Black=1} 1/2-1/2

[Event "Austrian Bundesliga 2023-24"]
[Site "Austria"]
[Date "2024.03.22"]
[Round "9.11"]
[White "Mikes, Jan"]
[Black "Kruckenhauser, Arthur"]
[Result "1-0"]
[ECO "C25"]
[WhiteElo "2358"]
[BlackElo "2355"]
[Annotator "TA"]
[PlyCount "53"]
[EventDate "2023.10.21"]
[EventType "team-tourn"]
[EventCountry "AUT"]
[SourceTitle "playchess.com"]
[Source "ChessBase"]
[SourceQuality "1"]
[TimeControl "40/5400+30:1800+30"]

{[%evp 9,52,0,0,-7,-4,0,5,9,10,9,0,22,14,16,0,0,3,8,52,50,72,57,85,104,172,179,710,705,695,327,656,668,679,710,1727,483,2173,2125,29983,29984,29997,776,29998,29999,29999]} 1. e4 {[%emt 0:00:05]} e5 {[%emt 0:00:40]} 2. Nc3 {[%emt 0:00:57]} Nc6 {[%emt 0:01:44]} 3. g3 {[%emt 0:00:16]} Bc5 {[%emt 0:06:07]} 4. Bg2 {[%emt 0:00:18]} a6 {[%emt 0:00:32]} 5. Nge2 {[%emt 0:00:50]} d6 {[%emt 0:00:46]} 6. O-O {[%emt 0:01:29]} h5 {[%emt 0:13:22] And now ...h4 would win.} 7. h3 {[%emt 0:13:22]} Nf6 {[%emt 0:08:31][%cal Of6g4]} 8. d3 {[%emt 0:04:25][%cal Bd2d3,Bd3d4][%mdl 32] The position is equal.} Be6 {[%emt 0:06:05]} 9. Nd5 {[%emt 0:16:42]} Qd7 {[%emt 0:04:28]} 10. Kh2 {[%emt 0:01:56]} O-O-O {[%emt 0:06:02]} 11. Bg5 {[%emt 0:04:48]} Bxd5 {[%emt 0:02:35]} 12. exd5 {[%emt 0:01:58]} Ne7 {[%emt 0:00:04]} 13. d4 $36 {[%emt 0:03:37][%mdl 2048] White fights for an advantage.} Bb6 {[%emt 0:04:13]} 14. c4 {[%emt 0:06:19][%cal Bc2c4,Bc4c5,Bc5b6][%mdl 32]} Qf5 {[%emt 0:10:15]} 15. Be3 {[%emt 0:02:37]} Qh7 {[%emt 0:02:32] [#]} 16. Rc1 $1 {[%emt 0:07:44]} Nf5 {[%emt 0:07:58] [#]} (16... exd4 $16 {was called for.} 17. Bxd4 (17. Nxd4 Ng4+ 18. Kg1 Nxe3 $14) 17... Qh6) 17. c5 $1 $18 {[%emt 0:04:19]} exd4 $2 {[%emt 0:12:03]} (17... Ng4+ 18. Kh1 (18. hxg4 hxg4+) 18... Ba7 (18... Nfxe3 19. fxe3 Nxe3 20. Qb3 $16)) 18. cxb6 {[%emt 0:01:41]} (18. Bxd4 Bxc5 19. Bxf6 gxf6 $16) 18... dxe3 {[%emt 0:00:05]} 19. Rxc7+ {[%emt 0:02:30]} (19. bxc7 Rd7 20. f4 Rxc7 $18) 19... Kb8 {[%emt 0:00:57]} 20. Qc2 {[%emt 0:04:38][%cal Oc7b7] Threatening mate with Rxb7+!} (20. Rxf7 Qg6 21. Rc7 Ng4+ 22. hxg4 hxg4+ 23. Kg1 Qh6 24. fxe3 Nxe3 $11) 20... Rc8 {[%emt 0:00:51][%cal Of5g3]} 21. Rc1 {[%emt 0:01:21][%cal Rc7c8]} Ng4+ {[%emt 0:03:16]} 22. Kh1 {[%emt 0:00:25]} (22. hxg4 $142 {[%cal Rc7c8]} hxg4+ 23. Kg1 exf2+ 24. Kxf2) 22... Nxf2+ {[%emt 0:07:00]} (22... Nxg3+ $142 23. Nxg3 (23. fxg3 Qxc2 24. R1xc2 Nf2+ 25. Kg1 g6 $18) 23... Qxc2 24. R1xc2 Nxf2+ 25. Kg1 g6) 23. Kg1 {[%emt 0:00:10][%cal Rc7c8]} Ne7 {[%emt 0:01:04]} 24. Rxc8+ {[%emt 0:00:19]} Nxc8 {[%emt 0:00:15]} 25. Qc7+ {[%emt 0:00:04]} Ka8 {[%emt 0:00:07]} 26. Qxc8+ {[%emt 0:00:04]} Rxc8 {[%emt 0:00:05]} 27. Rxc8# {[%emt 0:00:04] Weighted Error Value: White=0.27 (precise) /Black=0.42.  Mistake:       	---       	Black=2      Inaccurate:     	---       	Black=3      OK:         	White=6     	Black=5      Best:        	White=2     	Black=1      Strong:       	White=2     	---} 1-0

[Event "Austrian Bundesliga 2023-24"]
[Site "Austria"]
[Date "2024.03.22"]
[Round "9.12"]
[White "Ciolek, Andreas"]
[Black "Jablonicky, Martin"]
[Result "1-0"]
[ECO "A58"]
[WhiteElo "2302"]
[BlackElo "2393"]
[Annotator "TA"]
[PlyCount "79"]
[EventDate "2023.10.21"]
[EventType "team-tourn"]
[EventCountry "AUT"]
[SourceTitle "playchess.com"]
[Source "ChessBase"]
[SourceQuality "1"]
[TimeControl "40/5400+30:1800+30"]

{[%evp 25,79,46,48,55,62,45,79,94,101,85,73,19,67,59,68,57,71,44,49,16,9,-4,22,16,74,67,66,76,154,149,145,110,390,29,667,623,752,744,797,789,745,481,495,282,282,282,285,285,412,410,412,406,539,478,462,455]} 1. d4 {[%emt 0:00:03]} Nf6 {[%emt 0:00:04]} 2. c4 {[%emt 0:01:14]} c5 {[%emt 0:00:49]} 3. d5 {[%emt 0:00:25]} b5 {[%emt 0:00:05]} 4. cxb5 {[%emt 0:00:22]} a6 {[%emt 0:00:05]} 5. bxa6 {[%emt 0:00:13]} g6 {[%emt 0:00:05]} 6. Nc3 {[%emt 0:00:50]} Bxa6 {[%emt 0:00:07]} 7. e4 {[%emt 0:00:39]} Bxf1 {[%emt 0:00:07]} 8. Kxf1 {[%emt 0:00:07]} d6 {[%emt 0:00:04]} 9. Nf3 {[%emt 0:01:23]} Qc8 {[%emt 0:00:16]} 10. h3 {[%emt 0:03:09]} Bg7 {[%emt 0:01:43]} 11. g3 {[%emt 0:06:13]} O-O {[%emt 0:00:06]} 12. Kg2 {[%emt 0:00:09]} Nbd7 {[%emt 0:00:07]} 13. Re1 {[%emt 0:00:21]} Qb7 {[%emt 0:00:09]} 14. a4 {[%emt 0:08:28]} Rfb8 {[%emt 0:02:09]} 15. Ra3 {[%emt 0:03:29]} Nb6 {[%emt 0:01:12]} 16. b3 {[%emt 0:05:18] White is better.} Ne8 {[%emt 0:03:29]} 17. Qd3 {[%emt 0:06:56]} Nc7 {[%emt 0:01:20]} 18. Bd2 {[%emt 0:05:26]} ({White should play} 18. h4 $16) 18... Qa6 {[%emt 0:01:32]} (18... Nd7 $11) 19. Qe3 {[%emt 0:06:21]} e6 {[%emt 0:09:24]} 20. dxe6 {[%emt 0:04:57]} Nxe6 {[%emt 0:00:02]} 21. Nb5 {[%emt 0:12:06] Repels Nd4} d5 {[%emt 0:04:42]} 22. e5 {[%emt 0:05:15]} Nc8 {[%emt 0:09:15]} 23. Bc1 {[%emt 0:05:39]} Bf8 {[%emt 0:04:44]} 24. Ng5 {[%emt 0:06:51] [#] Black must now prevent Nxe6.} d4 {[%emt 0:05:52]} (24... Rb7 $11) 25. Qf3 $16 {[%emt 0:01:16]} Nxg5 {[%emt 0:01:03]} 26. Bxg5 {[%emt 0:00:02][%cal Oe5e6] And now e6! would win.} Rxb5 {[%emt 0:00:28]} (26... Qb7 $142 27. Qxb7 Rxb7) 27. axb5 $40 {[%emt 0:04:55][%mdl 128] White goes for the king.} Qxa3 {[%emt 0:00:01]} 28. e6 {[%emt 0:00:25] White is much more active.} Nd6 {[%emt 0:19:33][%mdl 8192]} (28... Ra7 $16 29. b6 Nxb6) 29. Qd5 $2 {[%emt 0:03:35]} (29. e7 $18 c4 30. b6 (30. exf8=Q+ Rxf8 31. Be7 Rc8 $18) 30... cxb3 31. b7 (31. exf8=B Rxf8 32. Be7 Rb8 $18) (31. exf8=N b2 $18) (31. exf8=Q+ Rxf8 32. Be7 Rb8 $18)) 29... c4 $2 {[%emt 0:23:39][%mdl 8192]} (29... Nxb5 30. exf7+ Kg7 31. Qe5+ Kxf7 32. Qe6+ Kg7 33. Bf6+ (33. Qd7+ Kg8 34. Qe6+ Kg7 35. Bf6+ Kh6 36. Qg4 Qxb3 37. Qh4#) 33... Kh6 34. Qg4 Qxb3 35. Qh4#) (29... Rc8 $11 30. e7 Bxe7 31. Rxe7 Qa8 32. Qxa8 Rxa8) 30. bxc4 $18 {[%emt 0:01:13]} Rc8 {[%emt 0:07:09]} 31. e7 {[%emt 0:01:25]} ({Worse is} 31. Qxd4 fxe6 (31... Rxc4 $2 {perishes.} 32. exf7+ Kxf7 33. Qf6+ Kg8 34. Qe6+ Kg7 35. Bf6+ Kh6 36. Qg8 $18) 32. Qf6 Qa7 33. Qxe6+ Qf7 $15) 31... Qa8 {[%emt 0:03:06]} 32. Qxa8 {[%emt 0:02:18]} Rxa8 {[%emt 0:00:02]} 33. exf8=Q+ {[%emt 0:01:08]} Rxf8 {[%emt 0:00:06][%mdl 4096] Endgame. KRB-KRN} 34. Rd1 {[%emt 0:02:28]} ({Not} 34. Be7 Re8 $11) (34. Bh6 $142 Rc8 35. b6 Nxc4 36. b7) 34... Nxc4 {[%emt 0:01:10]} 35. Rxd4 {[%emt 0:00:06]} Rc8 {[%emt 0:00:46]} 36. Bd8 {[%emt 0:00:56]} Kf8 {[%emt 0:00:40]} (36... Kg7 {was necessary.} 37. b6 Kf8) 37. b6 {[%emt 0:00:47]} Na5 {[%emt 0:01:37]} 38. Bc7 {[%emt 0:00:32] [#] Hoping for Ra4.} Ke7 {[%emt 0:00:15]} 39. Ra4 {[%emt 0:00:43]} Nc6 {[%emt 0:00:04]} 40. Bf4 {[%emt 0:00:00] Weighted Error Value: White=0.53/Black=0.65.  Loses game:     	---       	Black=2      Missed win:     	White=1     	---        Mistake:       	White=1     	Black=4      Inaccurate:     	White=2     	Black=3      OK:         	White=5     	Black=8      Best:        	White=5     	Black=1} 1-0

[Event "Austrian Bundesliga 2023-24"]
[Site "Austria"]
[Date "2024.03.22"]
[Round "9.13"]
[White "Kadric, Denis"]
[Black "Georgiadis, Nico"]
[Result "1/2-1/2"]
[ECO "C67"]
[WhiteElo "2560"]
[BlackElo "2537"]
[Annotator "TA"]
[PlyCount "29"]
[EventDate "2023.10.21"]
[EventType "team-tourn"]
[EventCountry "AUT"]
[SourceTitle "playchess.com"]
[Source "ChessBase"]
[SourceQuality "1"]
[TimeControl "40/5400+30:1800+30"]

{[%evp 24,29,4,0,0,0,0,-10]} 1. e4 {[%emt 0:00:03]} e5 {[%emt 0:00:07]} 2. Nf3 {[%emt 0:00:04]} Nc6 {[%emt 0:00:07]} 3. Bb5 {[%emt 0:00:04]} Nf6 {[%emt 0:00:10]} 4. O-O {[%emt 0:00:13]} Nxe4 {[%emt 0:00:10]} 5. d4 {[%emt 0:00:05][%cal Bd2d4,Bd4e5][%mdl 32]} Nd6 {[%emt 0:00:08]} 6. dxe5 {[%emt 0:00:03]} Nxb5 {[%emt 0:00:08]} 7. a4 {[%emt 0:00:02]} Nbd4 {[%emt 0:00:39]} 8. Nxd4 {[%emt 0:00:02]} d5 {[%emt 0:00:00]} 9. exd6 {[%emt 0:00:24]} Nxd4 {[%emt 0:00:00]} 10. Qxd4 {[%emt 0:00:02]} Qxd6 {[%emt 0:00:00]} 11. Qe4+ {[%emt 0:00:03]} Qe6 {[%emt 0:00:01]} 12. Qd4 {[%emt 0:00:02]} Qd6 {[%emt 0:00:08]} 13. Qe4+ {[%emt 0:00:02] Die Stellung ist ausgeglichen.} Qe6 {[%emt 0:00:08]} 14. Qd4 {[%emt 0:00:02]} Qd6 15. Qd1 {Hier war wenig los.   Gewichteter Fehlerwert: Weiß=0.02 (makellos) /Schwarz=0.00 (makellos) .  OK:         	Weiß=1     	Schwarz=1} 1/2-1/2